bitfinex-derivatives/quotes_ETHF0:USTF0_20260116
["timestamp","ask_amount","ask_price","bid_price","bid_amount"]
[1768544358445,0.15125,3307.2,3305.7,1.13136746]
[1768544358746,0.87659765,3307.1,3305.7,1.13136746]
[1768544358947,0.15125,3307.2,3305.7,1.13136746]
[1768544359143,0.87659764,3307.1,3305.7,1.13136746]
[1768544359344,0.15125,3307.2,3305.7,1.13136746]
[1768544359546,0.87672669,3307.1,3305.7,1.13136746]
[1768544359850,0.15125,3307.2,3305.7,1.13136746]
[1768544360041,0.87672712,3307.1,3305.7,1.13136746]
[1768544360350,0.15125,3307.2,3305.7,1.13136746]
[1768544360649,0.87687245,3307.1,3305.7,1.13136746]
[1768544360849,0.15125,3307.2,3305.7,1.13136746]
[1768544361051,0.87665768,3307.1,3305.7,1.13136746]
[1768544361250,0.15125,3307.2,3305.7,1.13136746]
[1768544361449,0.87682364,3307.1,3305.7,1.13136746]
[1768544361652,0.15125,3307.2,3305.7,1.13136746]
[1768544361840,0.87682364,3307.1,3305.7,1.13136746]
[1768544362153,0.15125,3307.2,3305.7,1.13136746]
[1768544362342,0.8770109,3307.1,3305.7,1.13136746]
[1768544362542,0.15125,3307.2,3305.7,1.13136746]
[1768544362735,0.8770109,3307.1,3305.7,1.13136746]
[1768544362936,0.15125,3307.2,3305.7,1.13136746]
[1768544363143,0.87701102,3307.1,3305.7,1.13136746]
[1768544363343,0.87701102,3307.0,3305.7,1.13136746]
[1768544363548,0.15125,3307.2,3305.7,1.13136746]
[1768544363752,0.87722487,3307.1,3305.7,1.13136746]
[1768544363953,0.87722487,3307.0,3305.7,1.13136746]
[1768544364250,0.15125,3307.2,3305.7,1.13136746]
[1768544364439,0.87749076,3307.1,3305.7,1.13136746]
[1768544364639,0.87749076,3307.0,3305.7,1.13136746]
[1768544364835,0.15125,3307.2,3305.7,1.13136746]
[1768544365053,0.87749076,3307.1,3305.7,1.13136746]
[1768544365256,0.87749076,3307.0,3305.7,1.13136746]
[1768544365453,0.87749076,3306.9,3305.7,1.13136746]
[1768544365659,0.15125,3307.2,3305.7,1.13136746]
[1768544365954,0.87776852,3307.1,3305.7,1.13136746]
[1768544366160,0.87776852,3307.0,3305.7,1.13136746]
[1768544366341,0.87776852,3306.9,3305.7,1.13136746]
[1768544366543,0.15125,3307.2,3305.7,1.13136746]
[1768544366761,0.87809034,3307.1,3305.7,1.13136746]
[1768544366956,0.87809034,3307.0,3305.7,1.13136746]
[1768544367159,0.87809034,3306.9,3305.7,1.13136746]
[1768544367455,0.15125,3307.2,3305.7,1.13136746]
[1768544367654,0.87847416,3307.1,3305.7,1.13136746]
[1768544367848,0.87847416,3307.0,3305.7,1.13136746]
[1768544368049,0.87847416,3306.9,3305.7,1.13136746]
[1768544368249,0.87847416,3306.8,3305.7,1.13136746]
[1768544368450,0.15125,3307.2,3305.7,1.13136746]
[1768544368755,0.87894933,3307.1,3305.7,1.13136746]
[1768544368955,0.87894933,3307.0,3305.7,1.13136746]
[1768544369149,0.87894933,3306.9,3305.7,1.13136746]
[1768544369354,0.87894933,3306.8,3305.7,1.13136746]
[1768544369654,0.15125,3307.2,3305.7,1.13136746]
[1768544369857,0.8790797,3307.1,3305.7,1.13136746]
[1768544370063,0.8790797,3307.0,3305.7,1.13136746]
[1768544370242,0.8790797,3306.9,3305.7,1.13136746]
[1768544370447,0.8790797,3306.8,3305.7,1.13136746]
[1768544370654,0.8790797,3306.7,3305.7,1.13136746]
[1768544370861,0.15125,3307.2,3305.7,1.13136746]
[1768544371149,0.87911234,3307.1,3305.7,1.13136746]
[1768544371349,0.87911234,3307.0,3305.7,1.13136746]
[1768544371550,0.87911234,3306.9,3305.7,1.13136746]
[1768544371750,0.87911234,3306.8,3305.7,1.13136746]
[1768544371952,0.87911234,3306.7,3305.7,1.13136746]
[1768544372151,0.15125,3307.2,3305.7,1.13136746]
[1768544372354,0.87939837,3307.1,3305.7,1.13136746]
[1768544372558,0.87939837,3307.0,3305.7,1.13136746]
[1768544372857,0.87939837,3306.9,3305.7,1.13136746]
[1768544373156,0.87939837,3306.8,3305.7,1.13136746]
[1768544373348,0.87939837,3306.7,3305.7,1.13136746]
[1768544373547,0.15125,3307.2,3305.7,1.13136746]
[1768544373753,0.87946333,3307.1,3305.7,1.13136746]
[1768544374255,0.87946333,3307.0,3305.7,1.13136746]
[1768544374454,0.87946333,3306.9,3305.7,1.13136746]
[1768544374753,0.87946333,3306.8,3305.7,1.13136746]
[1768544374953,0.87946333,3306.7,3305.7,1.13136746]
[1768544375155,0.15125,3307.2,3305.7,1.13136746]
[1768544375358,0.85465473,3306.8,3305.7,1.13136746]
[1768544375555,0.87955251,3306.7,3305.7,1.13136746]
[1768544392969,0.87955251,3306.7,3304.6,0.00269018]
[1768544392970,0.15133,3305.4,3304.0,0.84535443]
[1768544393170,0.85465473,3305.0,3304.0,0.84535443]
[1768544393559,0.47323185,3304.9,3304.0,0.84535443]
[1768544393766,0.85465473,3304.7,3304.0,0.84535443]
[1768544393965,0.47323185,3304.6,3304.0,0.84802258]
[1768544394361,0.8569477,3304.7,3304.0,0.84802258]
[1768544394562,0.00229297,3304.7,3304.0,0.84802258]
[1768544395166,0.00229297,3304.7,3304.0,0.00266815]
[1768544395563,0.85465473,3305.3,3304.0,0.96632103]
[1768544395760,1.35655852,3305.2,3304.0,0.96632103]
[1768544396066,0.44470583,3305.1,3304.0,0.96632103]
[1768544396268,0.85465473,3305.3,3304.0,0.96632103]
[1768544396563,0.00364723,3305.3,3304.5,0.96365288]
[1768544397869,0.00364723,3305.3,3304.1,0.96365288]
[1768544399461,0.85465473,3305.1,3304.1,0.96365288]
[1768544402566,0.85465473,3305.2,3304.1,0.96365288]
[1768544403169,0.85465473,3305.2,3304.0,0.00266815]
[1768544403170,0.85465473,3304.8,3304.0,0.00266815]
[1768544403763,3.027,3305.2,3304.0,0.00266815]
[1768544403970,0.85465473,3304.9,3304.0,0.00266815]
[1768544407270,0.92557543,3305.3,3304.0,0.00266815]
[1768544407483,0.85465473,3305.1,3304.0,0.96632103]
[1768544409478,0.85465473,3304.8,3304.0,0.00266815]
[1768544409874,0.00364723,3305.3,3304.0,0.00266815]
[1768544410182,0.85465473,3305.1,3304.0,0.00266815]
[1768544410478,0.00364723,3305.3,3304.0,0.96632103]
[1768544412779,0.85465473,3305.2,3304.0,0.96632103]
[1768544413691,0.85465473,3304.9,3304.0,0.00266815]
[1768544414690,0.85830196,3305.3,3304.0,0.96632103]
[1768544416286,0.00364723,3305.3,3304.4,0.96365288]
[1768544418583,0.85465473,3306.0,3304.4,0.96365288]
[1768544418781,1.3391313,3305.9,3304.4,0.96365288]
[1768544418981,0.85465473,3306.0,3304.4,0.96365288]
[1768544419288,1.33913053,3305.9,3304.4,0.96365288]
[1768544419485,0.42858093,3305.8,3304.4,0.96365288]
[1768544420790,0.95333287,3305.7,3304.4,0.96365288]
[1768544420985,0.00351136,3305.9,3304.4,0.96365288]
[1768544421182,1.38232296,3305.8,3304.7,0.92441045]
[1768544421484,0.00351136,3305.9,3305.0,0.92441045]
[1768544421789,0.85465473,3306.5,3305.0,0.92441045]
[1768544421989,1.37289515,3306.4,3305.0,0.92441045]
[1768544422188,1.37289515,3306.3,3305.0,0.92441045]
[1768544422396,1.37289515,3306.2,3305.0,0.92441045]
[1768544422587,1.37289515,3306.1,3305.0,0.92441045]
[1768544422897,0.95385635,3306.0,3305.0,0.92441045]
[1768544423586,0.95385635,3306.0,3305.1,0.85465473]
[1768544423880,0.00219366,3306.1,3305.2,0.92441045]
[1768544431299,0.85465473,3306.6,3305.2,0.92441045]
[1768544432395,0.8581263,3306.6,3305.2,0.92441045]
[1768544435302,0.00347157,3306.6,3305.2,0.92441045]
[1768544435503,0.85465473,3306.5,3305.2,0.92441045]
[1768544437303,0.00347157,3306.6,3305.2,0.92441045]
[1768544444207,0.9537664,3306.5,3305.2,0.92441045]
[1768544444414,0.00347157,3306.6,3305.2,0.92441045]
[1768544444711,0.95376662,3306.5,3305.2,0.92441045]
[1768544444911,0.00347157,3306.6,3305.2,0.92441045]
[1768544445111,0.9537666,3306.5,3305.2,0.92441045]
[1768544445306,0.00347157,3306.6,3305.2,0.92441045]
[1768544445511,0.95418503,3306.5,3305.2,0.92441045]
[1768544445705,0.00347157,3306.6,3305.2,0.92441045]
[1768544445907,0.95698576,3306.5,3305.2,0.92441045]
[1768544446106,0.95752769,3306.4,3305.2,0.92441045]
[1768544446309,0.92747413,3306.6,3305.2,0.92441045]
[1768544446514,1.37418555,3306.5,3305.2,0.92441045]
[1768544446717,0.95752778,3306.4,3305.2,0.92441045]
[1768544446914,0.92747413,3306.6,3305.2,0.92441045]
[1768544447112,1.37418525,3306.5,3305.2,0.92441045]
[1768544447316,0.95752756,3306.4,3305.2,0.92441045]
[1768544447511,0.92747413,3306.6,3305.2,0.92441045]
[1768544447713,1.37454652,3306.5,3305.2,0.92441045]
[1768544448015,0.95777113,3306.4,3305.2,0.92441045]
[1768544448215,0.95777113,3306.3,3305.2,0.92441045]
[1768544448418,0.92747413,3306.6,3305.2,0.92441045]
[1768544448714,1.37493504,3306.5,3305.2,0.92441045]
[1768544448911,0.95803218,3306.4,3305.2,0.92441045]
[1768544449110,0.95803218,3306.3,3305.2,0.92441045]
[1768544449317,0.92747413,3306.6,3305.2,0.92441045]
[1768544449519,1.3752587,3306.5,3305.2,0.92441045]
[1768544449713,1.3752587,3306.4,3305.2,0.92441045]
[1768544450020,0.95824831,3306.3,3305.2,0.92441045]
[1768544450220,0.95824831,3306.2,3305.2,0.92441045]
[1768544450415,0.92747413,3306.6,3305.2,0.92441045]
[1768544450613,1.37569589,3306.5,3305.2,0.92441045]
[1768544450816,1.37569589,3306.4,3305.2,0.92441045]
[1768544451120,0.92747413,3306.6,3305.2,0.92441045]
[1768544451121,1.37569589,3306.3,3305.2,0.92441045]
[1768544451419,0.95853776,3306.2,3305.2,0.92441045]
[1768544451620,0.92747413,3306.6,3305.2,0.92441045]
[1768544451821,1.36790788,3306.5,3305.2,0.92441045]
[1768544452011,1.36790788,3306.4,3305.2,0.92441045]
[1768544452211,1.36790788,3306.3,3305.2,0.92441045]
[1768544452413,0.95063946,3306.2,3305.2,0.92441045]
[1768544452615,0.92747413,3306.6,3305.2,0.92441045]
[1768544452921,1.36806382,3306.5,3305.2,0.92441045]
[1768544453120,1.36806382,3306.4,3305.2,0.92441045]
[1768544453321,1.36806382,3306.3,3305.2,0.92441045]
[1768544453522,0.9507429,3306.2,3305.2,0.92441045]
[1768544453724,0.92747413,3306.6,3305.2,0.92441045]
[1768544454022,1.36831482,3306.5,3305.2,0.92441045]
[1768544454322,1.36831482,3306.4,3305.2,0.92441045]
[1768544454518,1.36831482,3306.3,3305.2,0.92441045]
[1768544454719,1.36831482,3306.2,3305.2,0.92441045]
[1768544454923,0.92747413,3306.6,3305.2,0.92441045]
[1768544455124,1.36839582,3306.5,3305.2,0.92441045]
[1768544455325,1.36839582,3306.4,3304.8,1.1713523]
[1768544455525,1.36839582,3306.3,3304.8,1.1713523]
[1768544455822,1.36839582,3306.2,3304.8,1.1713523]
[1768544456022,0.9509951,3306.1,3304.8,1.1713523]
[1768544456225,0.92747413,3306.6,3304.8,1.1713523]
[1768544456425,1.36737116,3306.5,3304.8,1.1713523]
[1768544456612,1.36737116,3306.4,3304.8,1.1713523]
[1768544456812,1.36737116,3306.3,3304.8,1.1713523]
[1768544457022,1.36737116,3306.2,3304.8,1.1713523]
[1768544457223,0.95287486,3306.1,3304.8,1.1713523]
[1768544457423,1.05279738,3306.5,3304.8,1.1713523]
[1768544457624,1.36749963,3306.4,3304.8,1.1713523]
[1768544457926,1.36749963,3306.3,3304.8,1.1713523]
[1768544458126,1.36749963,3306.2,3304.8,1.1713523]
[1768544458327,0.95294134,3306.1,3304.8,1.1713523]
[1768544458531,1.05279738,3306.5,3304.8,1.1713523]
[1768544458716,1.36525848,3306.4,3304.8,1.1713523]
[1768544458920,1.36525848,3306.3,3304.8,1.1713523]
[1768544459122,1.36525848,3306.2,3304.8,1.1713523]
[1768544459321,0.95301782,3306.1,3304.8,1.1713523]
[1768544459630,1.05279738,3306.5,3304.8,1.1713523]
[1768544459930,1.36956877,3306.4,3304.8,1.1713523]
[1768544460131,1.36956877,3306.3,3304.8,1.1713523]
[1768544460326,1.36956877,3306.2,3304.8,1.1713523]
[1768544460528,0.95727992,3306.1,3304.8,1.1713523]
[1768544460721,1.05279738,3306.5,3304.8,1.1713523]
[1768544460921,1.36975224,3306.4,3304.8,1.1713523]
[1768544461222,1.36974595,3306.3,3304.8,1.1713523]
[1768544461527,1.36974595,3306.2,3304.8,1.1713523]
[1768544461827,0.95739169,3306.1,3304.8,1.1713523]
[1768544462024,0.95739169,3306.0,3304.8,1.1713523]
[1768544462218,1.05279738,3306.5,3304.8,1.1713523]
[1768544462420,1.36988342,3306.4,3304.8,1.1713523]
[1768544462622,1.36988342,3306.3,3304.8,1.1713523]
[1768544462821,1.36988342,3306.2,3304.8,1.1713523]
[1768544463128,0.95753329,3306.1,3304.8,1.1713523]
[1768544463331,0.95753329,3306.0,3304.8,1.1713523]
[1768544463526,1.05279738,3306.5,3304.8,1.1713523]
[1768544463831,1.36985863,3306.4,3304.8,1.1713523]
[1768544464034,1.36985863,3306.3,3304.8,1.1713523]
[1768544464231,1.36985863,3306.2,3304.8,1.1713523]
[1768544464530,0.95751599,3306.1,3304.8,1.1713523]
[1768544464832,0.95751599,3306.0,3304.8,1.1713523]
[1768544465028,1.05279738,3306.5,3304.8,1.1713523]
[1768544465231,1.36982946,3306.4,3304.8,1.1713523]
[1768544465533,1.36982946,3306.3,3304.8,1.1713523]
[1768544465829,1.36982946,3306.2,3304.8,1.1713523]
[1768544466031,0.95749348,3306.1,3304.8,1.1713523]
[1768544466232,0.95749348,3306.0,3304.8,1.1713523]
[1768544466426,1.05279738,3306.5,3304.8,1.1713523]
[1768544466629,1.36979949,3306.4,3304.8,1.1713523]
[1768544466830,1.36979949,3306.3,3304.8,1.1713523]
[1768544467028,1.36979949,3306.2,3304.8,1.1713523]
[1768544467229,0.95747471,3306.1,3304.8,1.1713523]
[1768544467436,1.05279738,3306.5,3304.8,1.1713523]
[1768544467737,1.36978419,3306.4,3304.8,1.1713523]
[1768544468037,1.36978419,3306.3,3304.8,1.1713523]
[1768544468236,0.95746404,3306.2,3304.8,1.1713523]
[1768544468538,0.00347157,3306.6,3304.8,1.1713523]
[1768544468731,1.36967908,3306.5,3304.8,1.1713523]
[1768544468924,1.36967908,3306.4,3305.0,1.0199923]
[1768544469234,0.95738721,3306.3,3305.0,1.0199923]
[1768544469435,0.00347157,3306.6,3305.0,1.0199923]
[1768544469627,1.3594857,3306.5,3305.0,1.0199923]
[1768544469822,0.95738781,3306.4,3305.2,1.0199923]
[1768544470127,0.00347157,3306.6,3305.4,1.0199923]
[1768544472329,1.05279738,3308.0,3306.2,1.0199923]
[1768544472528,1.34962701,3307.9,3306.2,1.0199923]
[1768544472831,1.34962701,3307.8,3306.2,1.0199923]
[1768544473028,1.34962701,3307.7,3306.2,1.0199923]
[1768544473223,0.94820567,3307.6,3306.2,1.0199923]
[1768544473724,0.00350575,3307.7,3306.2,1.0199923]
[1768544479030,0.00350575,3307.7,3306.2,1.1712823]
[1768544479942,0.00350575,3307.7,3306.1,0.85476101]
[1768544479943,0.00350575,3307.7,3306.4,1.0199923]
[1768544480136,0.00350575,3307.7,3306.4,1.02387896]
[1768544481845,1.00055132,3308.8,3306.6,0.99576436]
[1768544482047,1.93198648,3308.7,3306.6,0.99576436]
[1768544482243,0.15117,3308.9,3306.8,0.99576436]
[1768544482431,0.93105318,3308.8,3307.0,0.99576436]
[1768544482743,0.93105318,3308.7,3307.0,0.99576436]
[1768544482957,0.00330147,3308.8,3307.0,0.99576436]
[1768544483143,0.9310228,3308.7,3307.0,0.99576436]
[1768544483343,0.00330147,3308.8,3307.0,0.99576436]
[1768544483742,1.00055132,3309.5,3307.9,1.85052537]
[1768544483946,1.00055132,3309.5,3308.0,0.99576436]
[1768544484439,1.00055132,3310.1,3308.0,0.99576436]
[1768544484752,1.00055132,3309.9,3308.0,0.99576436]
[1768544485043,0.92975319,3309.8,3308.0,0.99576436]
[1768544485243,1.00055132,3309.9,3308.0,0.99576436]
[1768544486141,0.00318465,3310.1,3308.0,0.99576436]
[1768544487746,0.00318465,3310.1,3308.3,0.85476101]
[1768544487934,0.00318465,3310.1,3308.4,1.00752043]
[1768544499463,0.85296169,3310.0,3308.6,1.00752043]
[1768544500859,0.00318465,3310.1,3308.6,1.00752043]
[1768544501054,0.85614634,3310.1,3308.6,1.00752043]
[1768544501256,0.85296169,3309.4,3308.2,1.00752043]
[1768544501463,0.85296169,3309.4,3307.8,1.86048212]
[1768544502161,1.86372025,3309.4,3307.8,1.86048212]
[1768544503865,1.86372025,3309.4,3307.9,1.00752043]
[1768544504160,0.85296169,3309.4,3308.1,1.86048212]
[1768544504964,0.85296169,3309.7,3308.1,1.86048212]
[1768544505165,0.9302328,3309.6,3308.2,1.00752043]
[1768544505363,0.9302328,3309.5,3308.2,1.00752043]
[1768544505559,0.9302328,3309.4,3308.2,1.00752043]
[1768544505763,0.85296169,3309.7,3308.2,1.00752043]
[1768544505956,0.93064194,3309.6,3308.2,1.00752043]
[1768544506160,0.85296169,3309.7,3308.2,1.00752043]
[1768544506161,0.93064194,3309.5,3308.2,1.00752043]
[1768544506366,0.93064194,3309.4,3308.4,0.85296169]
[1768544506570,1.01075856,3309.8,3308.4,1.86048212]
[1768544506758,0.93094985,3309.7,3308.4,1.86048212]
[1768544506960,1.01075856,3309.8,3308.4,1.86048212]
[1768544507263,0.93094987,3309.7,3308.4,1.86048212]
[1768544507465,1.01075856,3309.8,3308.4,1.86048212]
[1768544507663,0.93138786,3309.7,3308.4,1.86048212]
[1768544507863,1.01075856,3309.8,3308.4,1.86048212]
[1768544508167,0.93138786,3309.7,3308.4,1.86048212]
[1768544508466,0.93138786,3309.6,3308.4,1.86048212]
[1768544508670,1.01075856,3309.8,3308.4,1.86048212]
[1768544508967,0.93181122,3309.7,3308.5,1.00752043]
[1768544509167,0.93181122,3309.6,3308.4,0.85296169]
[1768544509368,0.85296169,3309.7,3308.1,1.86048212]
[1768544509571,0.93232166,3309.6,3308.1,1.86048212]
[1768544509760,0.93232166,3309.5,3308.1,1.86048212]
[1768544510070,0.85296169,3309.7,3308.1,1.86048212]
[1768544510271,0.93237947,3309.6,3308.1,1.86048212]
[1768544510570,0.93237947,3309.5,3308.1,1.86048212]
[1768544510770,0.93237947,3309.4,3308.1,1.86048212]
[1768544511069,0.85296169,3309.7,3308.1,1.86048212]
[1768544511260,0.93207178,3309.6,3308.1,1.86048212]
[1768544511456,0.93207178,3309.5,3308.1,1.86048212]
[1768544511660,0.93207178,3309.4,3308.1,1.86048212]
[1768544511870,0.85296169,3309.7,3308.1,1.86048212]
[1768544512057,0.85296169,3309.7,3308.1,1.00752043]
[1768544512058,0.93277705,3309.6,3308.1,1.00752043]
[1768544512369,0.93277705,3309.5,3308.1,1.00752043]
[1768544512570,0.93277705,3309.4,3308.1,1.00752043]
[1768544512769,0.93277705,3309.3,3308.1,1.00752043]
[1768544512983,0.85296169,3309.7,3308.1,1.00752043]
[1768544513185,1.32417726,3309.6,3308.1,1.00752043]
[1768544513378,1.32417726,3309.5,3308.1,1.00752043]
[1768544513680,0.93343535,3309.4,3308.1,1.00752043]
[1768544513986,0.93343535,3309.3,3308.1,1.00752043]
[1768544514184,0.93343535,3309.2,3308.1,1.00752043]
[1768544514383,0.85296169,3309.7,3308.1,1.00752043]
[1768544514684,1.32034755,3309.6,3308.1,1.00752043]
[1768544514884,1.32034755,3309.5,3308.1,1.00752043]
[1768544515184,0.93443037,3309.4,3308.1,1.00752043]
[1768544515382,0.93443037,3309.3,3308.1,1.00752043]
[1768544515578,0.93443037,3309.2,3308.1,1.00752043]
[1768544515778,0.85296169,3309.7,3308.1,1.00752043]
[1768544515986,1.31023514,3309.6,3308.1,1.00752043]
[1768544516185,0.93448031,3309.5,3308.1,1.00752043]
[1768544516386,0.93448031,3309.4,3308.1,1.00752043]
[1768544516685,0.93448031,3309.3,3308.1,1.00752043]
[1768544516877,0.93448031,3309.2,3308.1,1.00752043]
[1768544517079,0.85296169,3309.7,3308.1,1.00752043]
[1768544517378,1.3102294,3309.6,3308.1,1.00752043]
[1768544517574,0.93447622,3309.5,3308.1,1.00752043]
[1768544517780,0.93447622,3309.4,3308.1,1.00752043]
[1768544517979,0.93447622,3309.3,3308.1,1.00752043]
[1768544518178,0.93447622,3309.2,3308.1,1.00752043]
[1768544518384,0.85296169,3309.7,3308.1,1.00752043]
[1768544518578,1.31027291,3309.6,3308.1,1.00752043]
[1768544518873,0.93450727,3309.5,3308.1,1.00752043]
[1768544519078,0.93450727,3309.4,3308.1,1.00752043]
[1768544519278,0.93450727,3309.3,3308.1,1.00752043]
[1768544519479,0.93450727,3309.2,3308.1,1.00752043]
[1768544519789,1.82155416,3309.7,3308.1,1.00752043]
[1768544520088,1.31029922,3309.6,3308.1,1.00752043]
[1768544520289,0.93452608,3309.5,3308.1,1.00752043]
[1768544520485,0.93452608,3309.4,3308.1,1.00752043]
[1768544520687,0.93452608,3309.3,3308.1,1.00752043]
[1768544520888,0.93452608,3309.2,3308.1,1.00752043]
[1768544521191,1.82155416,3309.7,3308.1,1.00752043]
[1768544521387,1.31033177,3309.6,3308.1,1.00752043]
[1768544521588,0.93454931,3309.5,3308.3,1.83455215]
[1768544521787,0.96859247,3309.7,3308.3,1.83455215]
[1768544521788,0.93454931,3309.4,3308.3,1.83455215]
[1768544521988,0.93454931,3309.3,3308.3,1.83455215]
[1768544522292,1.82155416,3309.7,3308.3,1.83455215]
[1768544522590,1.3103719,3309.6,3308.3,1.83455215]
[1768544522892,0.93457792,3309.5,3308.3,1.83455215]
[1768544523093,0.93457792,3309.4,3308.3,1.83455215]
[1768544523393,0.93457792,3309.3,3308.3,1.83455215]
[1768544523588,0.85296169,3309.7,3308.3,1.83455215]
[1768544523789,1.31042005,3309.6,3308.3,1.83455215]
[1768544523991,0.93461227,3309.5,3308.3,1.83455215]
[1768544524192,0.93461227,3309.4,3308.3,1.83455215]
[1768544524394,0.93461227,3309.3,3308.3,1.83455215]
[1768544524694,0.85296169,3309.7,3308.3,1.83455215]
[1768544524993,1.31047331,3309.6,3308.3,1.83455215]
[1768544525187,0.93465027,3309.5,3308.3,1.83455215]
[1768544525484,0.93465027,3309.4,3308.3,1.83455215]
[1768544525687,0.93465027,3309.3,3308.3,1.83455215]
[1768544525992,0.85296169,3309.7,3308.3,1.83455215]
[1768544526294,1.31053134,3309.6,3308.3,1.83455215]
[1768544526491,0.93469167,3309.5,3308.3,1.83455215]
[1768544526791,0.93469167,3309.4,3308.3,1.83455215]
[1768544526991,0.93469167,3309.3,3308.3,1.83455215]
[1768544527192,0.85296169,3309.7,3308.3,1.83455215]
[1768544527395,1.31065607,3309.6,3308.3,1.83455215]
[1768544527584,0.93478065,3309.5,3308.3,1.83455215]
[1768544527785,0.93478065,3309.4,3308.3,1.83455215]
[1768544528087,0.93478065,3309.3,3308.3,1.83455215]
[1768544528395,0.85296169,3309.7,3308.3,1.83455215]
[1768544528596,0.9348344,3309.6,3308.3,1.83455215]
[1768544528789,0.9348344,3309.5,3308.3,0.98159046]
[1768544529092,0.9348344,3309.4,3308.3,0.98159046]
[1768544529292,0.9348344,3309.3,3308.3,0.98159046]
[1768544529492,0.85296169,3309.7,3308.3,0.98159046]
[1768544529692,0.9348932,3309.6,3308.3,0.98159046]
[1768544529901,0.9348932,3309.5,3308.3,0.98159046]
[1768544530086,0.9348932,3309.4,3308.3,0.98159046]
[1768544530397,0.85296169,3309.7,3308.3,0.98159046]
[1768544530597,0.93495888,3309.6,3308.3,0.98159046]
[1768544530799,0.93495888,3309.5,3308.3,0.98159046]
[1768544531095,0.85296169,3309.7,3308.3,0.98159046]
[1768544531096,0.93495888,3309.4,3308.3,0.98159046]
[1768544531298,0.85296169,3309.7,3308.3,0.98159046]
[1768544531596,0.93503389,3309.6,3308.3,0.98159046]
[1768544531793,0.00318465,3310.1,3309.0,1.83455215]
[1768544531996,0.93488437,3310.0,3309.0,1.83677286]
[1768544532295,0.00318465,3310.1,3309.0,1.83677286]
[1768544532497,0.00318465,3310.1,3309.3,0.85296169]
[1768544533296,0.00318465,3310.1,3309.3,1.83455215]
[1768544534795,0.15106,3311.4,3309.0,0.00222071]
[1768544534796,0.85296169,3311.1,3309.6,1.83455215]
[1768544534998,1.29907915,3311.0,3309.6,1.83455215]
[1768544535196,0.93378373,3310.9,3309.6,1.83455215]
[1768544535496,0.93378373,3310.8,3309.6,1.83455215]
[1768544535695,0.0026414,3310.8,3309.6,1.83455215]
[1768544538698,0.0026414,3310.8,3309.6,0.98159046]
[1768544541998,0.0026414,3310.8,3309.8,0.97438073]
[1768544542598,0.85296169,3311.6,3310.1,0.97438073]
[1768544542800,0.92256392,3311.5,3310.1,0.97438073]
[1768544543008,0.92256392,3311.4,3310.1,0.97438073]
[1768544543295,0.85296169,3311.6,3310.1,0.97438073]
[1768544543504,0.92229155,3311.5,3310.1,0.97438073]
[1768544543701,0.92229155,3311.4,3310.1,0.97438073]
[1768544544006,0.00335674,3311.6,3310.1,0.97438073]
[1768544544298,0.85296169,3311.3,3310.1,0.97438073]
[1768544545205,1.05135326,3311.6,3310.1,0.97438073]
[1768544545498,0.85296169,3311.4,3310.1,0.97438073]
[1768544546999,1.05135326,3311.6,3310.1,0.97438073]
[1768544547197,0.85296169,3311.4,3310.1,0.97438073]
[1768544547506,0.85296169,3311.5,3310.1,0.97438073]
[1768544549803,1.03696232,3311.5,3309.7,1.04790282]
[1768544550003,0.85296169,3311.1,3309.7,1.04790282]
[1768544551304,0.85296169,3310.8,3309.7,1.04790282]
[1768544551509,0.85296169,3310.8,3309.4,0.85296169]
[1768544551710,0.85296169,3310.8,3309.4,1.90086451]
[1768544552111,0.85296169,3310.8,3309.5,1.04790282]
[1768544552410,0.85296169,3311.1,3309.5,1.04790282]
[1768544559522,1.03696232,3311.2,3309.5,1.04790282]
[1768544559712,0.92295726,3311.1,3309.5,1.04790282]
[1768544559913,1.03696232,3311.2,3309.5,1.04790282]
[1768544560221,0.92295726,3311.1,3309.5,1.04790282]
[1768544560410,0.92295726,3311.0,3309.5,1.04790282]
[1768544560611,1.03696232,3311.2,3309.5,1.04790282]
[1768544560812,0.9234922,3311.1,3309.5,1.04790282]
[1768544561011,0.9234922,3311.0,3309.5,1.04790282]
[1768544561212,1.03696232,3311.2,3309.5,1.04790282]
[1768544561412,0.92417039,3311.1,3309.5,1.04790282]
[1768544561711,0.92417039,3311.0,3309.5,1.04790282]
[1768544562005,1.03696232,3311.2,3309.5,1.04790282]
[1768544562208,0.92417038,3311.1,3309.5,1.04790282]
[1768544562409,0.92417038,3311.0,3309.5,1.04790282]
[1768544562617,0.92417038,3310.9,3309.5,1.04790282]
[1768544562821,1.03696232,3311.2,3309.5,1.04790282]
[1768544563012,0.92450806,3311.1,3309.5,1.04790282]
[1768544563322,0.92450806,3311.0,3309.5,1.04790282]
[1768544563625,0.92450806,3310.9,3309.5,1.04790282]
[1768544563822,1.03696232,3311.2,3309.5,1.04790282]
[1768544564023,0.92477312,3311.1,3309.5,1.04790282]
[1768544564315,0.92477312,3311.0,3309.5,1.04790282]
[1768544564517,0.92477312,3310.9,3309.5,1.04790282]
[1768544564820,1.03696232,3311.2,3309.5,1.04790282]
[1768544565020,0.92497059,3311.1,3309.5,1.04790282]
[1768544565221,0.92497059,3311.0,3309.5,1.04790282]
[1768544565422,0.92497059,3310.9,3309.5,1.04790282]
[1768544565622,1.03696232,3311.1,3309.5,1.04790282]
[1768544565824,0.92501858,3311.0,3309.5,1.04790282]
[1768544566020,0.92501858,3310.9,3309.5,1.04790282]
[1768544566325,1.03696232,3311.1,3309.5,1.04790282]
[1768544566522,0.92506415,3311.0,3309.5,1.04790282]
[1768544566825,0.92506415,3310.9,3309.5,1.04790282]
[1768544567025,1.03696232,3311.1,3309.5,1.04790282]
[1768544567217,0.92506415,3311.0,3309.5,1.04790282]
[1768544567418,0.92506415,3310.9,3309.5,1.04790282]
[1768544567715,1.03696232,3311.1,3309.5,1.04790282]
[1768544567921,0.92511296,3311.0,3309.5,1.04790282]
[1768544568120,0.92511296,3310.9,3309.5,1.04790282]
[1768544568320,1.18802232,3311.5,3309.5,1.04790282]
[1768544568635,1.2904039,3311.4,3309.5,1.04790282]
[1768544568929,1.2904039,3311.3,3309.5,1.04790282]
[1768544569119,0.92512479,3311.2,3309.5,1.04790282]
[1768544569420,0.92512479,3311.1,3309.5,1.04790282]
[1768544569618,1.18802232,3311.5,3309.5,1.04790282]
[1768544569819,1.290486,3311.4,3309.5,1.04790282]
[1768544570020,1.290486,3311.3,3309.5,1.04790282]
[1768544570219,0.92518379,3311.2,3309.5,1.04790282]
[1768544570425,0.92518379,3311.1,3309.5,1.04790282]
[1768544570626,1.18802232,3311.5,3309.5,1.04790282]
[1768544570827,1.29055748,3311.4,3309.5,1.04790282]
[1768544571027,1.29055748,3311.3,3309.5,1.04790282]
[1768544571328,0.92523509,3311.2,3309.5,1.04790282]
[1768544571530,0.92523509,3311.1,3309.5,1.04790282]
[1768544571827,1.18802232,3311.5,3309.5,1.04790282]
[1768544572029,1.28916057,3311.4,3309.5,1.04790282]
[1768544572215,1.28916057,3311.3,3309.6,0.97696611]
[1768544572415,0.92381634,3311.2,3309.6,0.97696611]
[1768544572632,0.92381634,3311.1,3309.6,0.97696611]
[1768544572928,1.18802232,3311.5,3309.6,0.97696611]
[1768544573125,1.28924722,3311.4,3309.6,0.97696611]
[1768544573428,1.28924722,3311.3,3309.6,0.97696611]